Workbook

Sheet 2019
C4: Путь
F5: начало | H5: конец | M5: 2 | N5: 3 | O5: 4
F6: км | G6: м | H6: км | I6: м
A7: 10407 | C7: 1 | D7: 1 | F7: 1080 | G7: 737 | H7: 1080 | I7: 885 | J7: =(H7*1000+I7)-(F7*1000+G7) -> 148
A8: 10407 | C8: 1 | D8: 1 | F8: 1082 | G8: 553 | H8: 1083 | I8: 833 | J8: 1280
A9: 10407 | C9: 1 | D9: 1 | F9: 1085 | G9: 699 | H9: 1086 | I9: 492 | J9: 793
A10: 10407 | C10: 1 | D10: 1 | F10: 1087 | G10: 514 | H10: 1088 | I10: 208 | J10: 694
A11: 10407 | C11: 1 | D11: 1 | F11: 1088 | G11: 473 | H11: 1088 | I11: 817 | J11: 344
A12: 10407 | C12: 1 | D12: 1 | F12: 1091 | G12: 925 | H12: 1092 | I12: 697 | J12: 772
A13: 10407 | C13: 1 | D13: 1 | F13: 1093 | G13: 543 | H13: 1094 | I13: 134 | J13: 591
A14: 10407 | C14: 1 | D14: 1 | F14: 1094 | G14: 465 | H14: 1094 | I14: 763 | J14: =(H14*1000+I14)-(F14*1000+G14) -> 298
A15: 10407 | C15: 1 | D15: 1 | F15: 1095 | G15: 42 | H15: 1095 | I15: 503 | J15: =(H15*1000+I15)-(F15*1000+G15) -> 461
A16: 10407 | C16: 1 | D16: 1 | F16: 1095 | G16: 743 | H16: 1096 | I16: 261 | J16: 518
A17: 10407 | C17: 1 | D17: 1 | F17: 1097 | G17: 186 | H17: 1097 | I17: 660 | J17: 474
A18: 10407 | C18: 1 | D18: 1 | F18: 1098 | G18: 1 | H18: 1098 | I18: 336 | J18: 335
A19: 10407 | C19: 1 | D19: 1 | F19: 1099 | G19: 160 | H19: 1099 | I19: 341 | J19: 181
A20: 10407 | C20: 1 | D20: 1 | F20: 1099 | G20: 536 | H20: 1099 | I20: 969 | J20: 433
A21: 10407 | C21: 1 | D21: 1 | F21: 1100 | G21: 50 | H21: 1100 | I21: 616 | J21: 566
A22: 10407 | C22: 1 | D22: 1 | F22: 1101 | G22: 416 | H22: 1102 | I22: 196 | J22: 780
A23: 10407 | C23: 1 | D23: 1 | F23: 1106 | G23: 338 | H23: 1106 | I23: 987 | J23: 649
A24: 10407 | C24: 1 | D24: 1 | F24: 1107 | G24: 34 | H24: 1107 | I24: 312 | J24: 278
A25: 10407 | C25: 1 | D25: 1 | F25: 1107 | G25: 500 | H25: 1108 | I25: 301 | J25: 801
A26: 10407 | C26: 1 | D26: 1 | F26: 1108 | G26: 633 | H26: 1108 | I26: 987 | J26: 354
A27: 10407 | C27: 1 | D27: 1 | F27: 1109 | G27: 218 | H27: 1110 | I27: 241 | J27: 1023
A28: 10407 | C28: 1 | D28: 1 | F28: 1110 | G28: 489 | H28: 1111 | I28: 597 | J28: 1108
A29: 10407 | C29: 1 | D29: 1 | F29: 1111 | G29: 939 | H29: 1112 | I29: 700 | J29: 761
A30: 10407 | C30: 1 | D30: 1 | F30: 1113 | G30: 60 | H30: 1113 | I30: 405 | J30: 345
A31: 10407 | C31: 1 | D31: 1 | F31: 1114 | G31: 544 | H31: 1114 | I31: 964 | J31: 420
A32: 10407 | C32: 2 | D32: 1 | F32: 1100 | G32: 56 | H32: 1100 | I32: 606 | J32: 550
A33: 10407 | C33: 2 | D33: 1 | F33: 1101 | G33: 420 | H33: 1102 | I33: 196 | J33: 776
A34: 10407 | C34: 2 | D34: 1 | F34: 1106 | G34: 305 | H34: 1106 | I34: 975 | J34: 670
A35: 10407 | C35: 2 | D35: 1 | F35: 1107 | G35: 41 | H35: 1107 | I35: 335 | J35: 294
A36: 10407 | C36: 2 | D36: 1 | F36: 1107 | G36: 488 | H36: 1108 | I36: 308 | J36: 820
A37: 10407 | C37: 2 | D37: 1 | F37: 1108 | G37: 623 | H37: 1108 | I37: 1002 | J37: 379
A38: 10407 | C38: 2 | D38: 1 | F38: 1109 | G38: 222 | H38: 1110 | I38: 250 | J38: 1028
A39: 10407 | C39: 2 | D39: 1 | F39: 1110 | G39: 491 | H39: 1111 | I39: 594 | J39: 1103
A40: 10407 | C40: 2 | D40: 1 | F40: 1111 | G40: 927 | H40: 1112 | I40: 703 | J40: 776
A41: 10407 | C41: 2 | D41: 1 | F41: 1113 | G41: 53 | H41: 1113 | I41: 396 | J41: 343
A42: 10407 | C42: 2 | D42: 1 | F42: 1114 | G42: 547 | H42: 1114 | I42: 969 | J42: 422
A43: 10407 | C43: 2 | D43: 1 | F43: 1115 | G43: 239 | H43: 1116 | I43: 794 | J43: 1555
A44: 10407 | C44: 2 | D44: 1 | F44: 1116 | G44: 972 | H44: 1117 | I44: 273 | J44: 301
A45: 10407 | C45: 2 | D45: 1 | F45: 1118 | G45: 304 | H45: 1118 | I45: 548 | J45: 244
A46: 10407 | C46: 2 | D46: 1 | F46: 1119 | G46: 51 | H46: 1119 | I46: 386 | J46: 335
A47: 10407 | C47: 2 | D47: 1 | F47: 1119 | G47: 539 | H47: 1119 | I47: 833 | J47: 294
A48: 10407 | C48: 2 | D48: 1 | F48: 1120 | G48: 569 | H48: 1120 | I48: 761 | J48: 192
A49: 10407 | C49: 2 | D49: 1 | F49: 1120 | G49: 976 | H49: 1121 | I49: 495 | J49: 519
A50: 10407 | C50: 2 | D50: 1 | F50: 1122 | G50: 448 | H50: 1124 | I50: 321 | J50: 1873
A51: 10407 | C51: 2 | D51: 1 | F51: 1125 | G51: 21 | H51: 1125 | I51: 933 | J51: 912
A52: 10407 | C52: 2 | D52: 1 | F52: 1126 | G52: 932 | H52: 1127 | I52: 562 | J52: 630
A53: 10407 | C53: 2 | D53: 1 | F53: 1128 | G53: 228 | H53: 1129 | I53: 367 | J53: 1139
A54: 10407 | C54: 2 | D54: 1 | F54: 1129 | G54: 464 | H54: 1131 | I54: 33 | J54: 1569
A55: 10407 | C55: 2 | D55: 1 | F55: 1132 | G55: 324 | H55: 1132 | I55: 733 | J55: 409
A56: 10407 | C56: 2 | D56: 1 | F56: 1133 | G56: 201 | H56: 1133 | I56: 466 | J56: 265
A57: 10407 | C57: 2 | D57: 1 | F57: 1134 | G57: 32 | H57: 1134 | I57: 336 | J57: 304
A58: 10407 | C58: 2 | D58: 1 | F58: 1135 | G58: 442 | H58: 1135 | I58: 917 | J58: 475
A59: 10407 | C59: 2 | D59: 1 | F59: 1136 | G59: 36 | H59: 1136 | I59: 715 | J59: 679
A60: 10407 | C60: 2 | D60: 1 | F60: 1139 | G60: 583 | H60: 1140 | I60: 206 | J60: 623
A61: 10407 | C61: 2 | D61: 1 | F61: 1141 | G61: 104 | H61: 1141 | I61: 359 | J61: 255
A62: 10407 | C62: 2 | D62: 1 | F62: 1146 | G62: 945 | H62: 1147 | I62: 479 | J62: 534
A63: 10407 | C63: 2 | D63: 1 | F63: 1157 | G63: 591 | H63: 1157 | I63: 776 | J63: 185
A64: 10407 | C64: 2 | D64: 1 | F64: 1160 | G64: 427 | H64: 1161 | I64: 54 | J64: =(H64*1000+I64)-(F64*1000+G64) -> 627
A65: 10407 | C65: 2 | D65: 1 | F65: 1161 | G65: 434 | H65: 1162 | I65: 216 | J65: 782
A66: 10407 | C66: 2 | D66: 1 | F66: 1164 | G66: 107 | H66: 1166 | I66: 86 | J66: 1979
A67: 10407 | C67: 2 | D67: 1 | F67: 1167 | G67: 414 | H67: 1167 | I67: 980 | J67: 566
A68: 10455 | C68: 1 | D68: ИЧ-2 | F68: 6 | G68: 170 | H68: 6 | I68: 631 | J68: 461
A69: 10455 | C69: 1 | D69: ИЧ-2 | F69: 7 | G69: 529 | H69: 8 | I69: 46 | J69: 517
A70: 10455 | C70: 1 | D70: ИЧ-2 | F70: 12 | G70: 358 | H70: 12 | I70: 919 | J70: 561
A71: 10407 | C71: 1 | D71: 3 | F71: 1210 | G71: 859 | H71: 1211 | I71: 988 | J71: =(H71*1000+I71)-(F71*1000+G71) -> 1129
A72: 10407 | C72: 1 | D72: 3 | F72: 1212 | G72: 580 | H72: 1213 | I72: 104 | J72: 524
A73: 10407 | C73: 1 | D73: 3 | F73: 1213 | G73: 159 | H73: 1213 | I73: 888 | J73: 729
A74: 10407 | C74: 1 | D74: 3 | F74: 1214 | G74: 384 | H74: 1215 | I74: 91 | J74: 707
A75: 10407 | C75: 1 | D75: 3 | F75: 1215 | G75: 241 | H75: 1215 | I75: 475 | J75: 234
A76: 10407 | C76: 1 | D76: 3 | F76: 1215 | G76: 557 | H76: 1215 | I76: 658 | J76: 101
A77: 10407 | C77: 1 | D77: 3 | F77: 1216 | G77: 302 | H77: 1216 | I77: 605 | J77: 303
A78: 10407 | C78: 1 | D78: 3 | F78: 1221 | G78: 33 | H78: 1222 | I78: 225 | J78: 1192
A79: 10407 | C79: 1 | D79: 3 | F79: 1222 | G79: 316 | H79: 1222 | I79: 705 | J79: 389
A80: 10407 | C80: 1 | D80: 3 | F80: 1222 | G80: 858 | H80: 1224 | I80: 154 | J80: 1296
A81: 10407 | C81: 1 | D81: 3 | F81: 1224 | G81: 312 | H81: 1224 | I81: 849 | J81: 537
A82: 10407 | C82: 1 | D82: 3 | F82: 1224 | G82: 929 | H82: 1224 | I82: 971 | J82: 42
A83: 10407 | C83: 1 | D83: 3 | F83: 1225 | G83: 133 | H83: 1225 | I83: 305 | J83: 172
A84: 10407 | C84: 2 | D84: 1 | F84: 1169 | G84: 22 | H84: 1169 | I84: 908 | J84: 886
A85: 10407 | C85: 2 | D85: 1 | F85: 1172 | G85: 138 | H85: 1172 | I85: 843 | J85: 705
A86: 10407 | C86: 2 | D86: 1 | F86: 1173 | G86: 208 | H86: 1174 | I86: 152 | J86: 944
A87: 10407 | C87: 2 | D87: 1 | F87: 1174 | G87: 269 | H87: 1174 | I87: 605 | J87: 336
A88: 10407 | C88: 2 | D88: 1 | F88: 1174 | G88: 654 | H88: 1175 | I88: 176 | J88: 522
A89: 10407 | C89: 2 | D89: 1 | F89: 1175 | G89: 585 | H89: 1175 | I89: 773 | J89: 188
A90: 10407 | C90: 2 | D90: 1 | F90: 1175 | G90: 768 | H90: 1175 | I90: 931 | J90: 163
A91: 10407 | C91: 2 | D91: 1 | F91: 1176 | G91: 17 | H91: 1176 | I91: 409 | J91: 392
A92: 10407 | C92: 2 | D92: 1 | F92: 1176 | G92: 462 | H92: 1177 | I92: 395 | J92: 933
A93: 10407 | C93: 2 | D93: 1 | F93: 1178 | G93: 982 | H93: 1179 | I93: 483 | J93: 501
A94: 10407 | C94: 2 | D94: 1 | F94: 1179 | G94: 496 | H94: 1179 | I94: 894 | J94: 398
A95: 10407 | C95: 2 | D95: 1 | F95: 1179 | G95: 892 | H95: 1180 | I95: 169 | J95: 277
A96: 10407 | C96: 2 | D96: 1 | F96: 1180 | G96: 408 | H96: 1180 | I96: 959 | J96: 551
A97: 10407 | C97: 2 | D97: 1 | F97: 1180 | G97: 961 | H97: 1181 | I97: 410 | J97: 449
A98: 10407 | C98: 2 | D98: 1 | F98: 1181 | G98: 921 | H98: 1182 | I98: 369 | J98: 448
A99: 10407 | C99: 2 | D99: 3 | F99: 1183 | G99: 338 | H99: 1184 | I99: 154 | J99: 816
A100: 10407 | C100: 2 | D100: 3 | F100: 1184 | G100: 810 | H100: 1185 | I100: 725 | J100: 915
A101: 10407 | C101: 2 | D101: 3 | F101: 1185 | G101: 905 | H101: 1186 | I101: 323 | J101: 418
A102: 10407 | C102: 2 | D102: 3 | F102: 1186 | G102: 391 | H102: 1186 | I102: 589 | J102: 198
A103: 10407 | C103: 2 | D103: 3 | F103: 1187 | G103: 526 | H103: 1187 | I103: 981 | J103: 455
A104: 10407 | C104: 2 | D104: 3 | F104: 1188 | G104: 689 | H104: 1188 | I104: 950 | J104: 261
A105: 10407 | C105: 2 | D105: 3 | F105: 1189 | G105: 399 | H105: 1189 | I105: 688 | J105: 289
A106: 10407 | C106: 2 | D106: 3 | F106: 1189 | G106: 705 | H106: 1189 | I106: 1005 | J106: 300
A107: 10407 | C107: 2 | D107: 3 | F107: 1190 | G107: 28 | H107: 1190 | I107: 252 | J107: 224
A108: 10407 | C108: 2 | D108: 3 | F108: 1190 | G108: 333 | H108: 1190 | I108: 565 | J108: 232
A109: 10407 | C109: 2 | D109: 3 | F109: 1190 | G109: 588 | H109: 1191 | I109: 28 | J109: 440
A110: 10407 | C110: 2 | D110: 3 | F110: 1192 | G110: 359 | H110: 1192 | I110: 782 | J110: 423
A111: 10407 | C111: 2 | D111: 3 | F111: 1192 | G111: 800 | H111: 1193 | I111: 191 | J111: 391
A112: 10407 | C112: 2 | D112: 3 | F112: 1193 | G112: 674 | H112: 1194 | I112: 323 | J112: 649
A113: 10407 | C113: 2 | D113: 3 | F113: 1195 | G113: 381 | H113: 1196 | I113: 30 | J113: 649
A114: 10407 | C114: 2 | D114: 3 | F114: 1196 | G114: 503 | H114: 1196 | I114: 823 | J114: 320
A115: 10407 | C115: 2 | D115: 3 | F115: 1197 | G115: 210 | H115: 1197 | I115: 478 | J115: 268
A116: 10407 | C116: 2 | D116: 3 | F116: 1197 | G116: 765 | H116: 1198 | I116: 24 | J116: 259
A117: 10407 | C117: 2 | D117: 3 | F117: 1198 | G117: 83 | H117: 1198 | I117: 328 | J117: 245
A118: 10407 | C118: 2 | D118: 3 | F118: 1198 | G118: 530 | H118: 1198 | I118: 883 | J118: 353
A119: 10407 | C119: 2 | D119: 3 | F119: 1199 | G119: 471 | H119: 1199 | I119: 813 | J119: 342
A120: 10407 | C120: 2 | D120: 3 | F120: 1200 | G120: 457 | H120: 1200 | I120: 838 | J120: 381
A121: 10407 | C121: 2 | D121: 3 | F121: 1202 | G121: 24 | H121: 1202 | I121: 544 | J121: 520
A122: 10407 | C122: 2 | D122: 3 | F122: 1202 | G122: 853 | H122: 1203 | I122: 128 | J122: 275
A123: 10407 | C123: 2 | D123: 3 | F123: 1203 | G123: 203 | H123: 1203 | I123: 636 | J123: 433
A124: 10407 | C124: 2 | D124: 3 | F124: 1203 | G124: 693 | H124: 1203 | I124: 969 | J124: 276
A125: 10407 | C125: 2 | D125: 3 | F125: 1204 | G125: 764 | H125: 1205 | I125: 87 | J125: 323
A126: 10407 | C126: 2 | D126: 3 | F126: 1205 | G126: 958 | H126: 1206 | I126: 709 | J126: 751
A127: 10407 | C127: 2 | D127: 3 | F127: 1207 | G127: 618 | H127: 1209 | I127: 163 | J127: 1545
A128: 10407 | C128: 2 | D128: 3 | F128: 1210 | G128: 298 | H128: 1210 | I128: 703 | J128: 405
A129: 10407 | C129: 2 | D129: 3 | F129: 1210 | G129: 862 | H129: 1212 | I129: 4 | J129: 1142
A130: 10407 | C130: 2 | D130: 3 | F130: 1212 | G130: 607 | H130: 1213 | I130: 127 | J130: 520
A131: 10407 | C131: 2 | D131: 3 | F131: 1213 | G131: 191 | H131: 1213 | I131: 897 | J131: 706
A132: 10407 | C132: 2 | D132: 3 | F132: 1215 | G132: 273 | H132: 1215 | I132: 533 | J132: 260
A133: 10407 | C133: 2 | D133: 3 | F133: 1221 | G133: 64 | H133: 1222 | I133: 257 | J133: 1193
A134: 10407 | C134: 2 | D134: 3 | F134: 1222 | G134: 322 | H134: 1222 | I134: 727 | J134: =(H134*1000+I134)-(F134*1000+G134) -> 405
A135: 10407 | C135: 2 | D135: 3 | F135: 1222 | G135: 880 | H135: 1224 | I135: 161 | J135: 1281
A136: 10407 | C136: 2 | D136: 3 | F136: 1224 | G136: 324 | H136: 1224 | I136: 701 | J136: 377
A137: 10407 | C137: 2 | D137: 3 | F137: 1224 | G137: 733 | H137: 1224 | I137: 836 | J137: 103
A138: 10407 | C138: 2 | D138: 3 | F138: 1225 | G138: 120 | H138: 1225 | I138: 260 | J138: 140
A139: 10459 | C139: 1 | D139: 3 | F139: 1 | G139: 382 | H139: 1 | I139: 980 | J139: 598
A140: 10459 | C140: 1 | D140: 3 | F140: 3 | G140: 266 | H140: 3 | I140: 826 | J140: 560
A141: 10459 | C141: 1 | D141: 3 | F141: 3 | G141: 838 | H141: 3 | I141: 945 | J141: 107
A142: 10459 | C142: 2 | D142: 3 | F142: 1 | G142: 41 | H142: 1 | I142: 237 | J142: 196
A143: 10459 | C143: 2 | D143: 3 | F143: 1 | G143: 367 | H143: 2 | I143: 18 | J143: 651
A144: 10459 | C144: 2 | D144: 3 | F144: 3 | G144: 177 | H144: 3 | I144: 220 | J144: 43
A145: 13101 | C145: 1 | D145: 3 | F145: 1276 | G145: 938 | H145: 1278 | I145: 104 | J145: =(H145*1000+I145)-(F145*1000+G145) -> 1166
A146: 13101 | C146: 1 | D146: 3 | F146: 1288 | G146: 9 | H146: 1288 | I146: 575 | J146: 566
A147: 13101 | C147: 1 | D147: 3 | F147: 1288 | G147: 850 | H147: 1289 | I147: 65 | J147: 215
A148: 13101 | C148: 1 | D148: 3 | F148: 1292 | G148: 938 | H148: 1293 | I148: 249 | J148: 311
A149: 13101 | C149: 1 | D149: 3 | F149: 1298 | G149: 35 | H149: 1298 | I149: 327 | J149: 292
A150: 13101 | C150: 1 | D150: 3 | F150: 1300 | G150: 591 | H150: 1300 | I150: 974 | J150: 383
A151: 13101 | C151: 1 | D151: 3 | F151: 1301 | G151: 75 | H151: 1301 | I151: 517 | J151: 442
A152: 13101 | C152: 1 | D152: 3 | F152: 1301 | G152: 664 | H152: 1302 | I152: 10 | J152: 346
A153: 13101 | C153: 1 | D153: 3 | F153: 1302 | G153: 132 | H153: 1303 | I153: 61 | J153: 929
A154: 13101 | C154: 1 | D154: 3 | F154: 1303 | G154: 155 | H154: 1303 | I154: 708 | J154: 553
A155: 13101 | C155: 1 | D155: 3 | F155: 1303 | G155: 770 | H155: 1304 | I155: 251 | J155: 481
A156: 13101 | C156: 1 | D156: 3 | F156: 1304 | G156: 949 | H156: 1305 | I156: 248 | J156: 299
A157: 13101 | C157: 1 | D157: 3 | F157: 1307 | G157: 992 | H157: 1308 | I157: 287 | J157: 295
A158: 13101 | C158: 1 | D158: 3 | F158: 1308 | G158: 548 | H158: 1309 | I158: 78 | J158: 530
A159: 13101 | C159: 1 | D159: 3 | F159: 1309 | G159: 180 | H159: 1309 | I159: 535 | J159: 355
A160: 13101 | C160: 1 | D160: 3 | F160: 1311 | G160: 184 | H160: 1311 | I160: 719 | J160: 535
A161: 13101 | C161: 1 | D161: 3 | F161: 1319 | G161: 246 | H161: 1319 | I161: 766 | J161: 520
A162: 13101 | C162: 1 | D162: 3 | F162: 1322 | G162: 62 | H162: 1322 | I162: 457 | J162: 395
A163: 13101 | C163: 1 | D163: 3 | F163: 1322 | G163: 581 | H163: 1323 | I163: 60 | J163: 479
A164: 13101 | C164: 1 | D164: 3 | F164: 1323 | G164: 174 | H164: 1323 | I164: 611 | J164: 437
A165: 13101 | C165: 1 | D165: 3 | F165: 1324 | G165: 345 | H165: 1324 | I165: 707 | J165: 362
A166: 13101 | C166: 1 | D166: 3 | F166: 1327 | G166: 717 | H166: 1328 | I166: 652 | J166: 935
A167: 13101 | C167: 1 | D167: 3 | F167: 1329 | G167: 288 | H167: 1329 | I167: 631 | J167: 343
A168: 13101 | C168: 1 | D168: 3 | F168: 1338 | G168: 384 | H168: 1340 | I168: 933 | J168: 2549
A169: 13101 | C169: 1 | D169: 3 | F169: 1345 | G169: 987 | H169: 1345 | I169: 1129 | J169: 142
A170: 13101 | C170: 2 | D170: 3 | F170: 1276 | G170: 788 | H170: 1278 | I170: 297 | J170: 1509
A171: 13101 | C171: 2 | D171: 3 | F171: 1284 | G171: 462 | H171: 1285 | I171: 167 | J171: 705
A172: 13101 | C172: 2 | D172: 3 | F172: 1287 | G172: 983 | H172: 1288 | I172: 565 | J172: 582
A173: 13101 | C173: 2 | D173: 3 | F173: 1288 | G173: 603 | H173: 1288 | I173: 826 | J173: 223
A174: 13101 | C174: 2 | D174: 3 | F174: 1288 | G174: 844 | H174: 1289 | I174: 49 | J174: 205
A175: 13101 | C175: 2 | D175: 3 | F175: 1289 | G175: 795 | H175: 1290 | I175: 275 | J175: 480
A176: 13101 | C176: 2 | D176: 3 | F176: 1292 | G176: 920 | H176: 1293 | I176: 261 | J176: 341
A177: 13101 | C177: 2 | D177: 3 | F177: 1298 | G177: 23 | H177: 1298 | I177: 322 | J177: 299
A178: 13101 | C178: 2 | D178: 3 | F178: 1298 | G178: 562 | H178: 1299 | I178: 30 | J178: 468
A179: 13101 | C179: 2 | D179: 3 | F179: 1300 | G179: 591 | H179: 1300 | I179: 962 | J179: 371
A180: 13101 | C180: 2 | D180: 3 | F180: 1301 | G180: 61 | H180: 1301 | I180: 492 | J180: 431
A181: 13101 | C181: 2 | D181: 3 | F181: 1301 | G181: 643 | H181: 1302 | I181: 12 | J181: 369
A182: 13101 | C182: 2 | D182: 3 | F182: 1302 | G182: 128 | H182: 1303 | I182: 27 | J182: 899
A183: 13101 | C183: 2 | D183: 3 | F183: 1303 | G183: 135 | H183: 1303 | I183: 689 | J183: 554
A184: 13101 | C184: 2 | D184: 3 | F184: 1303 | G184: 760 | H184: 1304 | I184: 243 | J184: 483
A185: 13101 | C185: 2 | D185: 3 | F185: 1304 | G185: 947 | H185: 1305 | I185: 230 | J185: 283
A186: 13101 | C186: 2 | D186: 3 | F186: 1305 | G186: 429 | H186: 1305 | I186: 751 | J186: 322
A187: 13101 | C187: 2 | D187: 3 | F187: 1305 | G187: 958 | H187: 1306 | I187: 218 | J187: 260
A188: 13101 | C188: 2 | D188: 3 | F188: 1307 | G188: 166 | H188: 1307 | I188: 443 | J188: 277
A189: 13101 | C189: 2 | D189: 3 | F189: 1307 | G189: 983 | H189: 1308 | I189: 269 | J189: 286
A190: 13101 | C190: 2 | D190: 3 | F190: 1308 | G190: 530 | H190: 1309 | I190: 58 | J190: 528
A191: 13101 | C191: 2 | D191: 3 | F191: 1309 | G191: 157 | H191: 1309 | I191: 525 | J191: 368
A192: 13101 | C192: 2 | D192: 3 | F192: 1309 | G192: 942 | H192: 1310 | I192: 300 | J192: 358
A193: 13101 | C193: 2 | D193: 3 | F193: 1310 | G193: 406 | H193: 1310 | I193: 835 | J193: 429
A194: 13101 | C194: 2 | D194: 3 | F194: 1311 | G194: 144 | H194: 1311 | I194: 706 | J194: 562
A195: 13101 | C195: 2 | D195: 3 | F195: 1311 | G195: 757 | H195: 1312 | I195: 232 | J195: 475
A196: 13101 | C196: 2 | D196: 3 | F196: 1313 | G196: 629 | H196: 1314 | I196: 101 | J196: 472
A197: 13101 | C197: 2 | D197: 3 | F197: 1319 | G197: 244 | H197: 1319 | I197: 754 | J197: 510
A198: 13101 | C198: 2 | D198: 3 | F198: 1322 | G198: 61 | H198: 1322 | I198: 481 | J198: 420
A199: 13101 | C199: 2 | D199: 3 | F199: 1323 | G199: 158 | H199: 1323 | I199: 612 | J199: 454
A200: 13101 | C200: 2 | D200: 3 | F200: 1323 | G200: 997 | H200: 1324 | I200: 305 | J200: 308
A201: 13101 | C201: 2 | D201: 3 | F201: 1324 | G201: 343 | H201: 1324 | I201: 720 | J201: 377
A202: 13101 | C202: 2 | D202: 3 | F202: 1327 | G202: 735 | H202: 1328 | I202: 654 | J202: 919
A203: 13101 | C203: 2 | D203: 3 | F203: 1329 | G203: 288 | H203: 1329 | I203: 636 | J203: 348
... 550 more rows
